[Event "*** Titled Tuesday Blitz"]
[Site "Chess.com"]
[Date "2021.03.30"]
[Round "4"]
[White "juancruzarias"]
[Black "ChelsieMonica"]
[Result "0-1"]
[WhiteElo "2554"]
[BlackElo "2394"]
[TimeControl "180+1"]
[EndTime "10:39:27 PDT"]
[Termination "ChelsieMonica won by checkmate"]

1. e4 {[%clk 0:02:52.9]} 1... e5 {[%clk 0:02:59.9]} 2. Nf3 {[%clk 0:02:51.2]}
2... Nc6 {[%clk 0:03:00.2]} 3. Bb5 {[%clk 0:02:47.3]} 3... a6 {[%clk 0:02:59.6]}
4. Bxc6 {[%clk 0:02:27.2]} 4... dxc6 {[%clk 0:02:59.8]} 5. d4 {[%clk 0:02:27.4]}
5... exd4 {[%clk 0:02:59.5]} 6. Qxd4 {[%clk 0:02:27.6]} 6... Qxd4 {[%clk
0:02:59.3]} 7. Nxd4 {[%clk 0:02:28.2]} 7... Bd7 {[%clk 0:02:59.7]} 8. Nc3 {[%clk
0:02:24.7]} 8... O-O-O {[%clk 0:03:00.1]} 9. Be3 {[%clk 0:02:17.7]} 9... g6
{[%clk 0:02:58.5]} 10. O-O-O {[%clk 0:02:11.8]} 10... Bg7 {[%clk 0:02:58.1]} 11.
Rhe1 {[%clk 0:02:04.7]} 11... Nf6 {[%clk 0:02:56.7]} 12. f3 {[%clk 0:02:02.8]}
12... Rhe8 {[%clk 0:02:53.4]} 13. Nb3 {[%clk 0:02:00.1]} 13... b6 {[%clk
0:02:49.8]} 14. Rd2 {[%clk 0:01:54.9]} 14... Be6 {[%clk 0:02:45.4]} 15. Red1
{[%clk 0:01:53.1]} 15... Rxd2 {[%clk 0:02:43.8]} 16. Rxd2 {[%clk 0:01:52.2]}
16... Rd8 {[%clk 0:02:44.3]} 17. Nd4 {[%clk 0:01:51.6]} 17... Bd7 {[%clk
0:02:43.2]} 18. Nde2 {[%clk 0:01:50.4]} 18... Re8 {[%clk 0:02:35.2]} 19. g4
{[%clk 0:01:48.2]} 19... h5 {[%clk 0:02:32.9]} 20. g5 {[%clk 0:01:39.4]} 20...
Nh7 {[%clk 0:02:23.5]} 21. h4 {[%clk 0:01:38.5]} 21... f6 {[%clk 0:02:18.1]} 22.
Nf4 {[%clk 0:01:19.2]} 22... fxg5 {[%clk 0:01:48.5]} 23. Nxg6 {[%clk 0:01:17.7]}
23... g4 {[%clk 0:01:48.4]} 24. Rf2 {[%clk 0:01:00.7]} 24... Nf6 {[%clk
0:00:59.4]} 25. e5 {[%clk 0:00:55.3]} 25... Nd5 {[%clk 0:00:58.5]} 26. Nxd5
{[%clk 0:00:53.3]} 26... cxd5 {[%clk 0:00:59.4]} 27. fxg4 {[%clk 0:00:52.6]}
27... Bxg4 {[%clk 0:00:56.1]} 28. Bg5 {[%clk 0:00:45.5]} 28... Bxe5 {[%clk
0:00:49.6]} 29. Ne7+ {[%clk 0:00:42.9]} 29... Kb7 {[%clk 0:00:48.4]} 30. Nxd5
{[%clk 0:00:42.3]} 30... Re6 {[%clk 0:00:37.2]} 31. c4 {[%clk 0:00:27.6]} 31...
b5 {[%clk 0:00:31.5]} 32. b3 {[%clk 0:00:26.9]} 32... bxc4 {[%clk 0:00:31.5]}
33. bxc4 {[%clk 0:00:27.8]} 33... Rc6 {[%clk 0:00:31.2]} 34. Ne3 {[%clk
0:00:25.4]} 34... Bd4 {[%clk 0:00:29.9]} 35. Rc2 {[%clk 0:00:19.4]} 35... Bf3
{[%clk 0:00:26.1]} 36. Kd2 {[%clk 0:00:19]} 36... Be4 {[%clk 0:00:24.9]} 37. Rc1
{[%clk 0:00:19.1]} 37... Rb6 {[%clk 0:00:23.5]} 38. Nd5 {[%clk 0:00:19.1]} 38...
Rb2+ {[%clk 0:00:23.2]} 39. Ke1 {[%clk 0:00:18.9]} 39... Bd3 {[%clk 0:00:19.3]}
40. Bd2 {[%clk 0:00:17]} 40... Be5 {[%clk 0:00:17.7]} 41. Nb4 {[%clk 0:00:16.4]}
41... Bg3+ {[%clk 0:00:17.4]} 42. Kd1 {[%clk 0:00:16.8]} 42... Bf5 {[%clk
0:00:14.9]} 43. c5 {[%clk 0:00:16.5]} 43... Bg4# {[%clk 0:00:15.2]} 0-1

[Event "*** Titled Tuesday Blitz"]
[Site "Chess.com"]
[Date "2021.03.30"]
[Round "4"]
[White "NoGuru"]
[Black "Kretov_Evgenij"]
[Result "1-0"]
[WhiteElo "2342"]
[BlackElo "2553"]
[TimeControl "180+1"]
[EndTime "10:39:30 PDT"]
[Termination "NoGuru won by resignation"]

1. Nf3 {[%clk 0:03:00.9]} 1... c5 {[%clk 0:03:00]} 2. c4 {[%clk 0:02:59.9]} 2...
Nf6 {[%clk 0:02:59.6]} 3. Nc3 {[%clk 0:02:59.8]} 3... e6 {[%clk 0:02:59.5]} 4.
e3 {[%clk 0:02:59.2]} 4... Be7 {[%clk 0:02:58.7]} 5. d4 {[%clk 0:02:58.8]} 5...
cxd4 {[%clk 0:02:59.1]} 6. exd4 {[%clk 0:02:58.9]} 6... d5 {[%clk 0:02:59.6]} 7.
Bd3 {[%clk 0:02:52.7]} 7... dxc4 {[%clk 0:02:54]} 8. Bxc4 {[%clk 0:02:52.5]}
8... O-O {[%clk 0:02:53.4]} 9. O-O {[%clk 0:02:52.2]} 9... Nbd7 {[%clk
0:02:53.5]} 10. Re1 {[%clk 0:02:51.6]} 10... Nb6 {[%clk 0:02:53.4]} 11. Bb3
{[%clk 0:02:46.2]} 11... Nbd5 {[%clk 0:02:52.9]} 12. Qe2 {[%clk 0:02:42.7]}
12... b6 {[%clk 0:02:50.9]} 13. Ne5 {[%clk 0:02:40.3]} 13... Bb7 {[%clk
0:02:50.8]} 14. Bg5 {[%clk 0:02:36.6]} 14... h6 {[%clk 0:02:31.5]} 15. Bd2
{[%clk 0:02:31.5]} 15... Re8 {[%clk 0:02:26]} 16. Rad1 {[%clk 0:02:30.3]} 16...
Bf8 {[%clk 0:02:23.4]} 17. Bc2 {[%clk 0:02:29.7]} 17... Nxc3 {[%clk 0:02:08.2]}
18. bxc3 {[%clk 0:02:27]} 18... Qd5 {[%clk 0:02:07.4]} 19. f3 {[%clk 0:02:26.1]}
19... Qxa2 {[%clk 0:02:05.8]} 20. Qd3 {[%clk 0:02:16]} 20... Ba6 {[%clk
0:01:32.4]} 21. c4 {[%clk 0:02:15.5]} 21... Qa3 {[%clk 0:01:17.5]} 22. Qxa3
{[%clk 0:02:03.6]} 22... Bxa3 {[%clk 0:01:16.9]} 23. Ra1 {[%clk 0:01:56.3]}
23... Bb2 {[%clk 0:01:16.8]} 24. Rxa6 {[%clk 0:01:56.2]} 24... Bxd4+ {[%clk
0:01:16.9]} 25. Kf1 {[%clk 0:01:56.5]} 25... Rec8 {[%clk 0:01:15.1]} 26. Bb3
{[%clk 0:01:36.9]} 26... Rc7 {[%clk 0:01:12.1]} 27. Nd3 {[%clk 0:01:30.9]} 27...
Rd8 {[%clk 0:01:09.9]} 28. Bf4 {[%clk 0:01:29.5]} 28... Rb7 {[%clk 0:01:01.3]}
29. Be5 {[%clk 0:01:26.7]} 29... Kf8 {[%clk 0:00:56.8]} 30. Bxd4 {[%clk
0:01:17.3]} 30... Rxd4 {[%clk 0:00:56.8]} 31. Ke2 {[%clk 0:01:17.9]} 31... Nd7
{[%clk 0:00:53.5]} 32. Rea1 {[%clk 0:01:15.8]} 32... Nc5 {[%clk 0:00:51.9]} 33.
Nxc5 {[%clk 0:01:07.8]} 33... bxc5 {[%clk 0:00:52]} 34. Bc2 {[%clk 0:01:00.9]}
34... Rxc4 {[%clk 0:00:47.8]} 35. R1a2 {[%clk 0:00:58.6]} 35... Ke7 {[%clk
0:00:27.6]} 36. Be4 {[%clk 0:00:57.9]} 36... Rb3 {[%clk 0:00:26.1]} 37. Rxa7+
{[%clk 0:00:56.7]} 37... Kf6 {[%clk 0:00:26.4]} 38. Rc7 {[%clk 0:00:51.8]} 38...
g5 {[%clk 0:00:26.1]} 39. Rc2 {[%clk 0:00:40.3]} 39... Rbc3 {[%clk 0:00:19.5]}
40. Rxc3 {[%clk 0:00:39.6]} 40... Rxc3 {[%clk 0:00:19.9]} 41. Kd2 {[%clk
0:00:40]} 41... Rc4 {[%clk 0:00:20.2]} 42. Bd3 {[%clk 0:00:40]} 42... Rh4 {[%clk
0:00:18.4]} 43. h3 {[%clk 0:00:38.9]} 43... h5 {[%clk 0:00:18.8]} 44. Rxc5
{[%clk 0:00:38.2]} 44... g4 {[%clk 0:00:19.3]} 45. hxg4 {[%clk 0:00:33.8]} 45...
hxg4 {[%clk 0:00:19.3]} 46. f4 {[%clk 0:00:33.3]} 46... Rh2 {[%clk 0:00:19.1]}
47. Be4 {[%clk 0:00:32.1]} 47... g3 {[%clk 0:00:18.8]} 48. Ke2 {[%clk
0:00:31.8]} 48... Rh1 {[%clk 0:00:17.3]} 49. Kf3 {[%clk 0:00:30.9]} 49... Re1
{[%clk 0:00:16.9]} 50. Rc4 {[%clk 0:00:29.7]} 50... Ke7 {[%clk 0:00:16.2]} 51.
Kxg3 {[%clk 0:00:29.6]} 51... f6 {[%clk 0:00:16.3]} 52. Bf3 {[%clk 0:00:29.6]}
52... e5 {[%clk 0:00:16.4]} 53. fxe5 {[%clk 0:00:28.8]} 53... fxe5 {[%clk
0:00:16.9]} 54. Re4 {[%clk 0:00:29]} 1-0

[Event "*** Titled Tuesday Blitz"]
[Site "Chess.com"]
[Date "2021.03.30"]
[Round "4"]
[White "FGHSMN"]
[Black "Kotofeyca"]
[Result "0-1"]
[WhiteElo "2651"]
[BlackElo "2378"]
[TimeControl "180+1"]
[EndTime "10:39:31 PDT"]
[Termination "Kotofeyca won on time"]

1. e4 {[%clk 0:03:00.9]} 1... c5 {[%clk 0:02:59.7]} 2. Nf3 {[%clk 0:03:00.3]}
2... d6 {[%clk 0:03:00.2]} 3. d4 {[%clk 0:02:58.9]} 3... cxd4 {[%clk 0:03:01.1]}
4. Nxd4 {[%clk 0:02:59.8]} 4... Nf6 {[%clk 0:03:01.7]} 5. Nc3 {[%clk 0:02:59.3]}
5... a6 {[%clk 0:03:02]} 6. h3 {[%clk 0:02:55.3]} 6... b5 {[%clk 0:02:52.6]} 7.
Bd3 {[%clk 0:02:48.3]} 7... Bb7 {[%clk 0:02:51.9]} 8. Qe2 {[%clk 0:02:34.3]}
8... e6 {[%clk 0:02:49.7]} 9. a3 {[%clk 0:02:27.5]} 9... Be7 {[%clk 0:02:47.6]}
10. Be3 {[%clk 0:02:25.6]} 10... Nc6 {[%clk 0:02:34.4]} 11. Nxc6 {[%clk
0:02:24.6]} 11... Bxc6 {[%clk 0:02:34.1]} 12. O-O {[%clk 0:02:23.7]} 12... Qc7
{[%clk 0:02:31.7]} 13. Rad1 {[%clk 0:02:22.2]} 13... O-O {[%clk 0:02:30.5]} 14.
f4 {[%clk 0:02:19.7]} 14... Qb7 {[%clk 0:02:28.9]} 15. Bd4 {[%clk 0:02:15.9]}
15... Rab8 {[%clk 0:02:11]} 16. e5 {[%clk 0:02:07.3]} 16... Nd5 {[%clk
0:01:47.6]} 17. Nxd5 {[%clk 0:01:57.8]} 17... Bxd5 {[%clk 0:01:45.7]} 18. f5
{[%clk 0:01:57.4]} 18... dxe5 {[%clk 0:01:25.2]} 19. Bxe5 {[%clk 0:01:44]} 19...
Rbd8 {[%clk 0:01:21.4]} 20. f6 {[%clk 0:01:42]} 20... Bc5+ {[%clk 0:00:58]} 21.
Kh1 {[%clk 0:01:39.1]} 21... g6 {[%clk 0:00:58]} 22. Qd2 {[%clk 0:01:28.4]}
22... Kh8 {[%clk 0:00:51]} 23. Qh6 {[%clk 0:01:19.6]} 23... Rg8 {[%clk
0:00:50.5]} 24. Rf4 {[%clk 0:01:18.1]} 24... Bxg2+ {[%clk 0:00:19.4]} 25. Kh2
{[%clk 0:01:15.1]} 25... Be3 {[%clk 0:00:20.3]} 26. Rg1 {[%clk 0:00:48.3]} 26...
Bxf4+ {[%clk 0:00:17]} 27. Bxf4 {[%clk 0:00:31.2]} 27... Be4 {[%clk 0:00:13.2]}
28. Be2 {[%clk 0:00:15.6]} 28... Qd5 {[%clk 0:00:10.1]} 29. Rg4 {[%clk
0:00:11.9]} 29... g5 {[%clk 0:00:09.7]} 30. Bxg5 {[%clk 0:00:10.7]} 30... Rg6
{[%clk 0:00:08.6]} 31. Qh4 {[%clk 0:00:09]} 31... Bf5 {[%clk 0:00:08.3]} 32. Rf4
{[%clk 0:00:05.2]} 32... Qe5 {[%clk 0:00:08]} 33. Bh5 {[%clk 0:00:02.1]} 33...
Rd3 {[%clk 0:00:07.1]} 34. cxd3 {[%clk 0:00:01.4]} 34... Bxd3 {[%clk 0:00:02.6]}
35. Bxg6 {[%clk 0:00:01]} 35... Qe2+ {[%clk 0:00:02.2]} 0-1

[Event "*** Titled Tuesday Blitz"]
[Site "Chess.com"]
[Date "2021.03.30"]
[Round "4"]
[White "guillembaches"]
[Black "AndrewMaco"]
[Result "0-1"]
[WhiteElo "2470"]
[BlackElo "2628"]
[TimeControl "180+1"]
[EndTime "10:39:33 PDT"]
[Termination "AndrewMaco won on time"]

1. e4 {[%clk 0:03:00.9]} 1... c5 {[%clk 0:02:47.9]} 2. Nf3 {[%clk 0:03:00.8]}
2... d6 {[%clk 0:02:48.8]} 3. d4 {[%clk 0:02:59.3]} 3... cxd4 {[%clk 0:02:49.7]}
4. Nxd4 {[%clk 0:02:59.9]} 4... Nf6 {[%clk 0:02:50.2]} 5. Nc3 {[%clk 0:03:00.2]}
5... a6 {[%clk 0:02:44]} 6. Be2 {[%clk 0:02:59.4]} 6... e5 {[%clk 0:02:43.7]} 7.
Nf3 {[%clk 0:02:59.6]} 7... Be7 {[%clk 0:02:43]} 8. Bg5 {[%clk 0:02:59.8]} 8...
Be6 {[%clk 0:02:43.1]} 9. Bxf6 {[%clk 0:02:59.5]} 9... Bxf6 {[%clk 0:02:43.6]}
10. Nd5 {[%clk 0:03:00.1]} 10... Nd7 {[%clk 0:02:43.5]} 11. Bc4 {[%clk
0:03:00.1]} 11... O-O {[%clk 0:02:42]} 12. O-O {[%clk 0:02:59.6]} 12... Rc8
{[%clk 0:02:38.5]} 13. Qe2 {[%clk 0:02:55.6]} 13... Nb6 {[%clk 0:02:13.5]} 14.
Nxb6 {[%clk 0:02:49.6]} 14... Qxb6 {[%clk 0:02:14.4]} 15. Bxe6 {[%clk
0:02:44.1]} 15... fxe6 {[%clk 0:02:14.3]} 16. c3 {[%clk 0:02:42.3]} 16... d5
{[%clk 0:02:11.6]} 17. Rad1 {[%clk 0:02:23.6]} 17... Rcd8 {[%clk 0:01:57.7]} 18.
b3 {[%clk 0:01:34.4]} 18... Rfe8 {[%clk 0:01:51]} 19. Rd3 {[%clk 0:01:26.4]}
19... Qc6 {[%clk 0:01:37.7]} 20. Rfd1 {[%clk 0:01:04.9]} 20... dxe4 {[%clk
0:01:29]} 21. Rxd8 {[%clk 0:01:01.2]} 21... Rxd8 {[%clk 0:01:17.4]} 22. Rxd8+
{[%clk 0:01:00.1]} 22... Bxd8 {[%clk 0:01:18.3]} 23. Nxe5 {[%clk 0:00:46.2]}
23... Qxc3 {[%clk 0:01:18.2]} 24. Qd1 {[%clk 0:00:42.3]} 24... Qxe5 {[%clk
0:00:53.1]} 25. Qxd8+ {[%clk 0:00:39.2]} 25... Kf7 {[%clk 0:00:53.6]} 26. Qd7+
{[%clk 0:00:33.2]} 26... Kg6 {[%clk 0:00:53.7]} 27. Qe8+ {[%clk 0:00:29.8]}
27... Kh6 {[%clk 0:00:53.5]} 28. g3 {[%clk 0:00:20]} 28... e3 {[%clk 0:00:52.3]}
29. fxe3 {[%clk 0:00:20.3]} 29... Qxe3+ {[%clk 0:00:53.2]} 30. Kg2 {[%clk
0:00:20.7]} 30... Qe4+ {[%clk 0:00:50.6]} 31. Kh3 {[%clk 0:00:20.9]} 31... Qf5+
{[%clk 0:00:42.4]} 32. Kg2 {[%clk 0:00:20.8]} 32... e5 {[%clk 0:00:43]} 33. Qe7
{[%clk 0:00:18.5]} 33... Qe4+ {[%clk 0:00:38.2]} 34. Kh3 {[%clk 0:00:18.7]}
34... Qd5 {[%clk 0:00:37.1]} 35. Kh4 {[%clk 0:00:10.1]} 35... e4 {[%clk
0:00:32.2]} 36. g4 {[%clk 0:00:07.3]} 36... g5+ {[%clk 0:00:20.9]} 37. Kg3
{[%clk 0:00:07.7]} 37... Kg6 {[%clk 0:00:18.8]} 38. Qe8+ {[%clk 0:00:06.9]}
38... Kf6 {[%clk 0:00:18.9]} 39. Qf8+ {[%clk 0:00:07.1]} 39... Ke5 {[%clk
0:00:18.7]} 40. Qe7+ {[%clk 0:00:06.5]} 40... Kd4 {[%clk 0:00:19.1]} 41. Qxh7
{[%clk 0:00:06.5]} 41... e3 {[%clk 0:00:18.2]} 42. Qg7+ {[%clk 0:00:06.7]} 42...
Kd3 {[%clk 0:00:18.4]} 43. Qg6+ {[%clk 0:00:06.5]} 43... Kd2 {[%clk 0:00:17]}
44. h4 {[%clk 0:00:05.1]} 44... e2 {[%clk 0:00:16.3]} 0-1

[Event "*** Titled Tuesday Blitz"]
[Site "Chess.com"]
[Date "2021.03.30"]
[Round "4"]
[White "ApoIogiA"]
[Black "noblerone"]
[Result "0-1"]
[WhiteElo "2183"]
[BlackElo "2400"]
[TimeControl "180+1"]
[EndTime "10:39:35 PDT"]
[Termination "noblerone won on time"]

1. d4 {[%clk 0:02:51.8]} 1... d5 {[%clk 0:03:00]} 2. c4 {[%clk 0:02:51.7]} 2...
c6 {[%clk 0:03:00.4]} 3. Nc3 {[%clk 0:02:52]} 3... Nf6 {[%clk 0:03:00.9]} 4. Nf3
{[%clk 0:02:52.2]} 4... dxc4 {[%clk 0:03:00.4]} 5. a4 {[%clk 0:02:51.3]} 5...
Bf5 {[%clk 0:03:00.2]} 6. Ne5 {[%clk 0:02:50.6]} 6... Nbd7 {[%clk 0:02:59.9]} 7.
Nxc4 {[%clk 0:02:45.2]} 7... Qc7 {[%clk 0:02:59.9]} 8. f3 {[%clk 0:02:43.2]}
8... e5 {[%clk 0:02:57.1]} 9. e4 {[%clk 0:02:41.2]} 9... exd4 {[%clk 0:02:51.3]}
10. Qxd4 {[%clk 0:02:37.7]} 10... Be6 {[%clk 0:02:49]} 11. g3 {[%clk 0:02:03.9]}
11... Bc5 {[%clk 0:02:12]} 12. Qd1 {[%clk 0:01:37]} 12... Rd8 {[%clk 0:02:05.1]}
13. Qc2 {[%clk 0:01:21.9]} 13... O-O {[%clk 0:01:54.8]} 14. Bf4 {[%clk
0:01:20.4]} 14... Qc8 {[%clk 0:01:44]} 15. Nd6 {[%clk 0:01:19.4]} 15... Qa8
{[%clk 0:01:37.6]} 16. Rd1 {[%clk 0:01:17.5]} 16... Nh5 {[%clk 0:01:26.4]} 17.
Bg5 {[%clk 0:00:51.4]} 17... f6 {[%clk 0:00:53.4]} 18. Bc1 {[%clk 0:00:50]}
18... Ne5 {[%clk 0:00:51.8]} 19. f4 {[%clk 0:00:05.5]} 19... Bxd6 {[%clk
0:00:17]} 20. fxe5 {[%clk 0:00:04.5]} 20... Bxe5 {[%clk 0:00:17.9]} 21. Rxd8
{[%clk 0:00:04.3]} 21... Rxd8 {[%clk 0:00:16.9]} 22. Be2 {[%clk 0:00:04.9]}
22... g6 {[%clk 0:00:12.8]} 23. O-O {[%clk 0:00:01.8]} 23... Qc8 {[%clk
0:00:11.7]} 24. Kg2 {[%clk 0:00:02.4]} 24... Ng7 {[%clk 0:00:11.8]} 25. Bf3
{[%clk 0:00:02.9]} 25... Bh3+ {[%clk 0:00:12.2]} 26. Kg1 {[%clk 0:00:03.7]}
26... Bxf1 {[%clk 0:00:12.7]} 27. Kxf1 {[%clk 0:00:04.3]} 27... Bd4 {[%clk
0:00:12.8]} 28. Kg2 {[%clk 0:00:05]} 28... Qe6 {[%clk 0:00:13.1]} 29. Bf4 {[%clk
0:00:05.4]} 29... Be5 {[%clk 0:00:12.2]} 30. Be2 {[%clk 0:00:05]} 30... Kh8
{[%clk 0:00:12]} 31. Be3 {[%clk 0:00:04.2]} 31... b6 {[%clk 0:00:11]} 32. b3
{[%clk 0:00:04.5]} 32... Ne8 {[%clk 0:00:09.7]} 33. Bc4 {[%clk 0:00:04.9]} 33...
Qe7 {[%clk 0:00:09.7]} 34. Qf2 {[%clk 0:00:04.9]} 34... Nd6 {[%clk 0:00:10]} 35.
Bd3 {[%clk 0:00:04.1]} 35... Bxc3 {[%clk 0:00:09.8]} 36. Bd4 {[%clk 0:00:03.1]}
36... Bxd4 {[%clk 0:00:09.6]} 37. Qxd4 {[%clk 0:00:04]} 37... Qe5 {[%clk
0:00:09.7]} 38. Qb4 {[%clk 0:00:02.7]} 38... c5 {[%clk 0:00:09.2]} 39. Qd2
{[%clk 0:00:01.7]} 39... Nxe4 {[%clk 0:00:08.5]} 40. Bxe4 {[%clk 0:00:01.5]}
40... Rxd2+ {[%clk 0:00:07.6]} 0-1

[Event "*** Titled Tuesday Blitz"]
[Site "Chess.com"]
[Date "2021.03.30"]
[Round "4"]
[White "kamilianin235"]
[Black "wadsy27"]
[Result "0-1"]
[WhiteElo "2270"]
[BlackElo "2570"]
[TimeControl "180+1"]
[EndTime "10:39:36 PDT"]
[Termination "wadsy27 won by resignation"]

1. e4 {[%clk 0:03:00.9]} 1... c5 {[%clk 0:02:58.9]} 2. Nf3 {[%clk 0:03:00.6]}
2... e6 {[%clk 0:02:58.9]} 3. d4 {[%clk 0:02:59.3]} 3... cxd4 {[%clk 0:02:59.8]}
4. Nxd4 {[%clk 0:02:59]} 4... Nc6 {[%clk 0:02:59.9]} 5. Nc3 {[%clk 0:02:57.6]}
5... Qc7 {[%clk 0:02:59.9]} 6. f4 {[%clk 0:02:55.9]} 6... Nxd4 {[%clk
0:02:58.4]} 7. Qxd4 {[%clk 0:02:54.8]} 7... a6 {[%clk 0:02:55.7]} 8. Be3 {[%clk
0:02:51.4]} 8... b5 {[%clk 0:02:51.5]} 9. a3 {[%clk 0:02:48.9]} 9... Bb7 {[%clk
0:02:45.2]} 10. Be2 {[%clk 0:02:39.5]} 10... Rc8 {[%clk 0:02:44.5]} 11. O-O
{[%clk 0:02:31.3]} 11... Nf6 {[%clk 0:02:38.8]} 12. Bf3 {[%clk 0:02:24.4]} 12...
Bc5 {[%clk 0:02:24]} 13. Qxc5 {[%clk 0:02:20.4]} 13... Qxc5 {[%clk 0:02:24.9]}
14. Bxc5 {[%clk 0:02:20.7]} 14... Rxc5 {[%clk 0:02:25.4]} 15. e5 {[%clk
0:02:16.3]} 15... Bxf3 {[%clk 0:02:17.6]} 16. exf6 {[%clk 0:02:06.2]} 16... Bc6
{[%clk 0:02:16.9]} 17. fxg7 {[%clk 0:02:02]} 17... Rg8 {[%clk 0:02:16.3]} 18.
Rad1 {[%clk 0:02:00.3]} 18... Rxg7 {[%clk 0:02:14.2]} 19. g3 {[%clk 0:01:58.9]}
19... h5 {[%clk 0:02:12.1]} 20. Kf2 {[%clk 0:01:56.8]} 20... h4 {[%clk
0:02:10.5]} 21. Rg1 {[%clk 0:01:44.8]} 21... hxg3+ {[%clk 0:02:09.8]} 22. hxg3
{[%clk 0:01:39]} 22... Rh5 {[%clk 0:02:09.4]} 23. Ne2 {[%clk 0:01:37.1]} 23...
Rh2+ {[%clk 0:02:06.7]} 24. Ke3 {[%clk 0:01:36]} 24... f5 {[%clk 0:01:51.3]} 25.
c3 {[%clk 0:01:31.7]} 25... Ke7 {[%clk 0:01:33.6]} 26. Rdf1 {[%clk 0:01:26.3]}
26... Bd5 {[%clk 0:01:29.9]} 27. Rf2 {[%clk 0:01:24.8]} 27... Rgh7 {[%clk
0:01:29.4]} 28. Rxh2 {[%clk 0:01:14.9]} 28... Rxh2 {[%clk 0:01:30.3]} 29. Re1
{[%clk 0:01:05.4]} 29... Kd6 {[%clk 0:01:17.7]} 30. b4 {[%clk 0:00:55.9]} 30...
Bc4 {[%clk 0:01:12.8]} 31. Rd1+ {[%clk 0:00:52]} 31... Kc7 {[%clk 0:01:11.5]}
32. Rd2 {[%clk 0:00:51.1]} 32... Rh1 {[%clk 0:01:01.8]} 33. Nd4 {[%clk
0:00:40.2]} 33... Ra1 {[%clk 0:00:43.2]} 34. Nc2 {[%clk 0:00:39.4]} 34... Rg1
{[%clk 0:00:38.5]} 35. Kf2 {[%clk 0:00:37.1]} 35... Rf1+ {[%clk 0:00:37.9]} 36.
Ke3 {[%clk 0:00:33.8]} 36... Bd5 {[%clk 0:00:32.8]} 37. Rf2 {[%clk 0:00:32.2]}
37... Rg1 {[%clk 0:00:28.4]} 38. Nd4 {[%clk 0:00:27.4]} 38... Rxg3+ {[%clk
0:00:27.5]} 39. Kd2 {[%clk 0:00:28.1]} 39... Be4 {[%clk 0:00:27.2]} 40. Nb3
{[%clk 0:00:25.6]} 40... d6 {[%clk 0:00:24.3]} 41. Nc1 {[%clk 0:00:22.1]} 41...
e5 {[%clk 0:00:21.1]} 42. Rf1 {[%clk 0:00:15.3]} 42... Kc6 {[%clk 0:00:19.7]}
43. Rf2 {[%clk 0:00:13.8]} 43... Kd5 {[%clk 0:00:19.7]} 44. Rf1 {[%clk
0:00:13.5]} 44... Kc4 {[%clk 0:00:19]} 45. Ne2 {[%clk 0:00:12.8]} 45... Rd3+
{[%clk 0:00:18.2]} 46. Kc2 {[%clk 0:00:12]} 46... Rf3+ {[%clk 0:00:17.6]} 0-1

[Event "*** Titled Tuesday Blitz"]
[Site "Chess.com"]
[Date "2021.03.30"]
[Round "4"]
[White "VladaSviridova"]
[Black "DrCeltic"]
[Result "0-1"]
[WhiteElo "2239"]
[BlackElo "2428"]
[TimeControl "180+1"]
[EndTime "10:39:38 PDT"]
[Termination "DrCeltic won by resignation"]

1. d4 {[%clk 0:03:00.9]} 1... d5 {[%clk 0:02:59.9]} 2. c4 {[%clk 0:03:01.3]}
2... c6 {[%clk 0:03:00.1]} 3. Nf3 {[%clk 0:03:01.5]} 3... Nf6 {[%clk 0:03:00.2]}
4. Nc3 {[%clk 0:03:02.1]} 4... dxc4 {[%clk 0:03:00.3]} 5. a4 {[%clk 0:03:02.1]}
5... Bf5 {[%clk 0:03:00.1]} 6. Ne5 {[%clk 0:03:02]} 6... e6 {[%clk 0:03:00.2]}
7. f3 {[%clk 0:02:51.4]} 7... Bb4 {[%clk 0:02:53.7]} 8. Nxc4 {[%clk 0:02:38.7]}
8... O-O {[%clk 0:02:52.5]} 9. Bg5 {[%clk 0:01:42.3]} 9... h6 {[%clk 0:02:24.3]}
10. Bh4 {[%clk 0:01:35.3]} 10... c5 {[%clk 0:02:20]} 11. Bf2 {[%clk 0:01:11.5]}
11... cxd4 {[%clk 0:02:16.3]} 12. Bxd4 {[%clk 0:01:08.4]} 12... Nc6 {[%clk
0:02:15.9]} 13. Bf2 {[%clk 0:00:57.9]} 13... Nd5 {[%clk 0:02:07.9]} 14. Rc1
{[%clk 0:00:54.7]} 14... Qf6 {[%clk 0:01:58.3]} 15. e4 {[%clk 0:00:43.8]} 15...
Nxc3 {[%clk 0:01:55.3]} 16. bxc3 {[%clk 0:00:42.7]} 16... Bxc3+ {[%clk
0:01:55.1]} 17. Nd2 {[%clk 0:00:42.7]} 17... Rfd8 {[%clk 0:01:41.5]} 18. Be3
{[%clk 0:00:39.6]} 18... Bg6 {[%clk 0:01:36.3]} 19. Be2 {[%clk 0:00:38.1]} 19...
Bd4 {[%clk 0:01:27.3]} 20. Qb3 {[%clk 0:00:28.3]} 20... e5 {[%clk 0:01:09.7]}
21. Bxd4 {[%clk 0:00:15.1]} 21... Nxd4 {[%clk 0:01:08.9]} 22. Qe3 {[%clk
0:00:15]} 22... Qb6 {[%clk 0:01:04.4]} 23. Kf2 {[%clk 0:00:13.5]} 23... Qb4
{[%clk 0:01:01.8]} 24. Rc4 {[%clk 0:00:12.7]} 24... Qb2 {[%clk 0:00:57.6]} 25.
Rhc1 {[%clk 0:00:12.5]} 25... Ne6 {[%clk 0:00:56.3]} 26. R1c2 {[%clk 0:00:12.2]}
26... Qa1 {[%clk 0:00:51.4]} 27. g3 {[%clk 0:00:12.5]} 27... Nd4 {[%clk
0:00:48.9]} 28. Rc1 {[%clk 0:00:11.7]} 28... Qb2 {[%clk 0:00:49]} 29. Nf1 {[%clk
0:00:11.3]} 29... f6 {[%clk 0:00:43.8]} 30. h4 {[%clk 0:00:10.8]} 30... Bf7
{[%clk 0:00:43.8]} 31. R4c3 {[%clk 0:00:09.7]} 31... Qb4 {[%clk 0:00:40.9]} 32.
Kg2 {[%clk 0:00:09.3]} 32... Qxa4 {[%clk 0:00:40.8]} 33. Kh3 {[%clk 0:00:08.3]}
33... Be6+ {[%clk 0:00:40.3]} 34. g4 {[%clk 0:00:08.5]} 34... Bf7 {[%clk
0:00:38.1]} 35. Bc4 {[%clk 0:00:08.5]} 35... Bxc4 {[%clk 0:00:35.6]} 36. Rxc4
{[%clk 0:00:09.1]} 36... Qa2 {[%clk 0:00:34.5]} 37. Ng3 {[%clk 0:00:08.7]} 37...
Ne6 {[%clk 0:00:31.9]} 38. Nh5 {[%clk 0:00:08.9]} 38... Qd2 {[%clk 0:00:29.9]}
39. Qxd2 {[%clk 0:00:08.2]} 39... Rxd2 {[%clk 0:00:30.4]} 40. R4c2 {[%clk
0:00:08.5]} 40... Rad8 {[%clk 0:00:30]} 41. Kg3 {[%clk 0:00:08.2]} 41... a5
{[%clk 0:00:26.4]} 42. Rxd2 {[%clk 0:00:07.9]} 42... Rxd2 {[%clk 0:00:26.3]} 43.
Rc8+ {[%clk 0:00:08.1]} 43... Rd8 {[%clk 0:00:24.6]} 44. Rxd8+ {[%clk
0:00:07.8]} 44... Nxd8 {[%clk 0:00:24.7]} 45. Kf2 {[%clk 0:00:08.1]} 45... a4
{[%clk 0:00:22.2]} 46. Ng3 {[%clk 0:00:07.8]} 46... a3 {[%clk 0:00:21.3]} 47.
Ne2 {[%clk 0:00:07.7]} 47... a2 {[%clk 0:00:20.7]} 48. Nc3 {[%clk 0:00:08.2]}
48... a1=Q {[%clk 0:00:21]} 0-1